lending/lending_fUSD_20260328
["ID","MTS","AMOUNT","RATE_DAILY","PERIOD"]
[418964095,1774673438131,-2260.04379862,0.00015899,2]
[418964096,1774673438140,-500.0,0.00015899,2]
[418964097,1774673438150,-500.0,0.00015899,2]
[418964098,1774673438160,-500.0,0.00015899,2]
[418964099,1774673438169,-500.0,0.00015899,2]
[418964100,1774673438179,-500.0,0.00015899,2]
[418964101,1774673438188,-500.0,0.00015899,2]
[418964102,1774673438197,-500.0,0.00015899,2]
[418964103,1774673438206,-500.0,0.00015899,2]
[418964104,1774673438216,-362.45831355,0.00015899,2]
[418964105,1774673438230,-137.54168645,0.00015899,2]
[418964106,1774673438241,-500.0,0.00015899,2]
[418964107,1774673438252,-500.0,0.00015899,2]
[418964108,1774673438262,-500.0,0.00015899,2]
[418964109,1774673438271,-500.0,0.00015899,2]
[418964110,1774673438281,-469.33226556,0.00015899,2]
[418964111,1774673438292,-500.0,0.00015899,2]
[418964112,1774673438303,-500.0,0.00015899,2]
[418964113,1774673438313,-487.17739311,0.00015899,2]
[418964114,1774673438322,-613.87526399,0.00015899,2]
[418964115,1774673438332,-500.0,0.00015899,2]
[418964116,1774673438341,-500.0,0.00015899,2]
[418964117,1774673438350,-500.0,0.00015899,2]
[418964118,1774673438359,-424.34007824,0.00015899,2]
[418964119,1774673438368,-500.0,0.00015899,2]
[418964121,1774673438378,-818.0,0.000159,5]
[418964123,1774673438387,-657.0,0.000159,5]
[418964124,1774673438397,-11108.37045564,0.000159,2]
[418964127,1774673438412,-981.56,0.000159,2]
[418964331,1774673440817,-331.315,0.00015012,2]
[418964333,1774673443425,-979.00589432,0.00015012,2]
[418964334,1774673443511,-706.5417064,0.00015012,2]
[418964335,1774673443541,-148.00039928,0.00015012,2]
[418964336,1774673443551,-4662.26960072,0.000159,2]
[418964338,1774673446090,-4058.95238503,0.000159,2]
[418964339,1774673446254,-29287.37223159,0.000159,2]
[418964347,1774673493436,-555.0,0.00013111,2]
[418964348,1774673493465,-195.0,0.00014062,2]
[418964349,1774673493494,-500.0,0.00014356,2]
[418964350,1774673493523,-195.0,0.00014422,2]
[418964351,1774673493553,-154.46961229,0.00014989,2]
[418964352,1774673493732,-555.0,0.00015012,2]
[418964353,1774673493748,-195.0,0.00015012,2]
[418964354,1774673493767,-500.0,0.00015012,2]
[418964355,1774673493779,-195.0,0.00015012,2]
[418964356,1774673493792,-154.46961229,0.00015012,2]
[418964357,1774673493826,-587.47961229,0.00015012,2]
[418964358,1774673493869,-1174.95922458,0.00015012,2]
[418964359,1774673493890,-1801.07077542,0.00015012,2]
[418964360,1774673493929,-849.02077542,0.00015012,2]
[418964361,1774673493959,-196.43472492,0.00015111,2]
[418964362,1774673496929,2836.0,0.0001472,2]
[418964363,1774673504157,-151.0,0.00015618,2]
[418964364,1774673515024,5000.01,0.00015667,2]
[418964365,1774673515051,5000.01,0.00015667,2]
[418964366,1774673515076,5000.01,0.00015667,2]
[418964367,1774673515101,5000.01,0.00015667,2]
[418964368,1774673515128,9698.01,0.00015667,2]
[418964369,1774673515154,10000.01,0.00015667,2]
[418964370,1774673515180,10000.01,0.00015667,2]
[418964371,1774673515206,10000.01,0.00015667,2]
[418964372,1774673520632,-2756.6560505,0.00015667,2]
[418964373,1774673520751,-150.0,0.00015012,2]
[418964374,1774673520786,-4700.01,0.00015667,2]
[418964375,1774673520848,-5000.01,0.00015667,2]
[418964379,1774673939782,-250.0,0.00013,2]
[418964380,1774673939807,-555.0,0.00013111,2]
[418964381,1774673939831,-250.0,0.000143,2]
[418964382,1774673939855,-500.0,0.00014356,2]
[418964383,1774673939878,-500.0,0.00014356,2]
[418964384,1774673939901,-4569.18,0.00014563,2]
[418964385,1774673939923,-1500.0,0.00014656,2]
[418964386,1774673939945,-331.22,0.00014782,2]
[418964387,1774673939967,-775.43,0.00014815,2]
[418964388,1774673939989,-4251.28,0.00014872,2]
[418964389,1774673940012,-200.0,0.00014885,2]
[418964390,1774673940037,-154.46961229,0.00014989,2]
[418964391,1774673940061,-300.0,0.0001501,2]
[418964392,1774673940085,-1200.0,0.00015011,2]
[418964393,1774673940108,-150.0,0.00015012,2]
[418964394,1774673940131,-150.0,0.00015012,2]
[418964395,1774673940155,-150.0,0.00015012,2]
[418964396,1774673940178,-602.0,0.000154,2]
[418964397,1774673940202,-331.22,0.00015521,2]
[418964398,1774673940226,-2285.0882,0.00015567,2]
[418964399,1774673940249,-11149.78784873,0.00015567,2]
[418964400,1774673940274,-217.92790441,0.00015567,2]
[418964401,1774673940297,-3375.07291518,0.00015567,2]
[418964402,1774673940322,-3375.07291514,0.00015604,2]
[418964403,1774673940345,-11149.78784867,0.00015615,2]
[418964404,1774673940560,-152.05,0.00015618,2]
[418964405,1774673949745,-3375.07291514,0.00015641,2]
[418964406,1774673949770,-11149.78784867,0.00015662,2]
[418964407,1774673949795,-55.60199177,0.00015666,2]
[418964409,1774673984334,-2570.07,0.00015507,2]
[418964410,1774673984363,-444.39800823,0.00015666,2]
[418964411,1774673984392,-347.03805477,0.00015666,2]
[418964412,1774673984420,-500.0,0.00015666,2]
[418964413,1774673984454,-500.0,0.00015666,2]
[418964414,1774673984486,-329.92580728,0.00015666,2]
[418964415,1774673984517,-117.14625944,0.00015666,2]
[418964416,1774673984665,-382.85374056,0.00015666,2]
[418964417,1774673984694,-191.02417517,0.00015666,2]
[418964418,1774673984723,-552.12163537,0.00015666,2]
[418964419,1774673984751,-153.0,0.00015666,2]
[418964420,1774673987523,-7848.10034696,0.00015667,2]
[418964421,1774673987631,-10000.01,0.00015667,2]
[418964422,1774673987722,-5000.01,0.00015667,2]
[418964423,1774673987885,-5000.01,0.00015667,2]
[418964424,1774673987982,-5000.01,0.00015667,2]
[418964425,1774673988074,-5000.01,0.00015667,2]
[418964426,1774673990432,-10000.01,0.00015667,2]
[418964427,1774673990625,-5000.01,0.00015667,2]
[418964428,1774673990740,-5000.01,0.00015667,2]
[418964429,1774673990839,-5000.01,0.00015667,2]
[418964430,1774673990951,-5000.01,0.00015667,2]
[418964431,1774673993889,-5000.01,0.00015667,2]
[418964432,1774673994085,-5000.01,0.00015667,2]
[418964433,1774673994236,-5000.01,0.00015667,2]
[418964434,1774673994310,-5000.01,0.00015667,2]
[418964435,1774673997100,-5000.01,0.00015667,2]
[418964436,1774673997115,-5000.01,0.00015667,2]
[418964437,1774673997127,-5000.01,0.00015667,2]
[418964438,1774673997142,-5000.01,0.00015667,2]
[418964439,1774673997983,-10506.0,0.00015667,2]
[418964443,1774674450641,152.27,7.384e-05,2]
[418964444,1774674456899,-152.27,0.00011077,2]
[418964445,1774674456927,-540.0,0.00013111,2]
[418964446,1774674456954,-151.0,0.00014296,2]
[418964447,1774674456981,-160.75,0.00014307,2]
[418964448,1774674457007,-500.0,0.00014356,2]
[418964449,1774674457036,-500.0,0.00014356,2]
[418964450,1774674457064,-152.27,0.00014769,2]
[418964451,1774674457204,-1200.0,0.00015011,2]
[418964452,1774674457234,-300.0,0.00015011,2]
[418964453,1774674457261,-300.0,0.00015011,2]
[418964454,1774674457340,-87.43,0.00015012,2]
[418964455,1774674457354,-300.0,0.00015012,2]
[418964456,1774674457379,-300.0,0.00015012,2]
[418964457,1774674457393,-1400.01,0.00015012,2]
[418964458,1774674457406,-3924.56,0.00015012,2]
[418964459,1774674457417,-621.0,0.00015012,2]
[418964460,1774674457426,-454.45,0.00015182,2]
[418964461,1774674459772,-329.08,0.00015182,2]
[418964462,1774674459801,-300.0,0.00015566,2]
[418964463,1774674459850,-3741.85,0.00015567,2]
[418964465,1774674462796,-405.655,0.00015567,2]
[418964466,1774674462829,-4188.7,0.00015567,2]
[418964467,1774674463061,-811.31,0.00015567,2]
[418964468,1774674463098,-3377.39,0.00015567,2]
[418964478,1774674607258,78273.65863291,9.5e-05,3]
[418964486,1774674632306,-400.0,9.5e-05,3]
[418964487,1774674632320,-703.72702952,9.5e-05,3]
[418964493,1774674632632,-1.50083301,9.5e-05,3]
[418964494,1774674632644,-3710.00000002,9.5e-05,3]
[418964495,1774674632672,-258.87161287,9.5e-05,3]
[418964496,1774674632683,-308.43241033,9.5e-05,3]
[418964525,1774674640440,-4822.24716189,9.5e-05,3]
[418964526,1774674640500,-1019.64210675,9.5e-05,3]
[418964527,1774674640825,-6750.50676922,9.5e-05,3]
[418964528,1774674640884,-3057.59638399,9.5e-05,3]
[418964529,1774674640895,-540.0,0.00013111,2]
[418964530,1774674640907,-500.0,0.00014356,2]
[418964531,1774674640918,-500.0,0.00014356,2]
[418964532,1774674640930,-500.0,0.00015466,2]
[418964533,1774674640941,-442.92663834,0.00015466,2]
[418964534,1774674640952,-1200.0,0.00015466,2]
[418964535,1774674640963,-300.0,0.00015466,2]
[418964536,1774674640975,-579.0,0.00015466,5]
[418964537,1774674640986,-1023442.97245208,0.00015467,2]
[418964538,1774674641212,-2742.37269276,0.00015467,2]
[418964548,1774674643483,-522.5563823,0.00015467,2]
[418964549,1774674643495,-69469.99999999,0.00015467,2]
[418964566,1774674646415,-686.69924265,0.00015467,2]
[418964567,1774674646588,-306389.4803939,0.00015467,2]
[418964568,1774674646600,-9186.07056425,0.00015467,2]
[418964571,1774674918288,-540.00006,0.00013111,2]
[418964572,1774674918317,-500.0,0.00014356,2]
[418964573,1774674918345,-500.0,0.00014356,2]
[418964574,1774674918375,-870.5,0.00014715,2]
[418964575,1774674918462,-179.00988,0.00015021,2]
[418964576,1774674918500,-1020.99012,0.00015021,2]
[418964577,1774674918535,-2958.02976,0.00015022,2]
[418964578,1774674921199,-1946.03976,0.00015022,2]
[418964579,1774674921223,-1107.93048,0.00015022,2]
[418964580,1774674921297,-2193.92941961,0.00015367,2]
[418964581,1774674921320,-612.15116078,0.00015367,2]
[418964582,1774674924208,-540.0,0.00013111,2]
[418964583,1774674924248,-3920.01,0.00015367,2]
[418964584,1774674924309,-1951.40259452,0.00015367,2]
[418964585,1774674924336,-1097.20481096,0.00015367,2]
[418964592,1774675216866,-336.0,0.00014356,2]
[418964593,1774675216896,-500.0,0.00014356,2]
[418964594,1774675216927,-500.0,0.00014356,2]
[418964595,1774675216955,-2807.0,0.000144,2]
[418964596,1774675217075,-1561.74,0.00014408,2]
[418964597,1774675217108,-1245.26,0.00014408,2]
[418964598,1774675217136,-161.0,0.0001472,2]
[418964599,1774675217165,-566.13,0.00014801,2]
[418964600,1774675217195,-476.53,0.00014802,2]
[418964601,1774675217226,-1200.0,0.00015039,2]
[418964602,1774675217329,-2702.17,0.0001504,2]
[418964603,1774675219766,-104.83,0.0001504,2]
[418964604,1774675219797,-1570.0,0.0001504,2]
[418964605,1774675219827,-161.0,0.0001504,2]
[418964606,1774675219856,-2807.0,0.0001536,2]
[418964607,1774675219945,-714.35,0.0001536,2]
[418964608,1774675222859,-855.65,0.0001536,2]
[418964609,1774675222889,-1570.0,0.0001536,2]
[418964610,1774675222918,-1570.0,0.0001536,2]
[418964611,1774675222947,-300.0,0.00015366,2]
[418964612,1774675222977,-300.0,0.00015366,2]
[418964613,1774675223067,-808.71,0.00015367,2]
[418964614,1774675223144,-808.72,0.00015367,2]
[418964615,1774675223168,-8382.57,0.00015367,2]
[418964618,1774675390585,-500.0,0.00014356,2]
[418964619,1774675390646,-500.0,0.00014356,2]
[418964620,1774675390695,-250.0,0.00014576,2]
[418964621,1774675390738,-635.87,0.00014796,2]
[418964622,1774675390779,-151.0,0.00014801,2]
[418964623,1774675390818,-151.0,0.00014802,2]
[418964624,1774675390854,-152.67,0.00014802,2]
[418964625,1774675391028,-318.93,0.00015022,2]
[418964626,1774675391051,-5000.01,0.00015022,2]
[418964627,1774675393506,-693.06,0.00015022,2]
[418964628,1774675393538,-170.48485286,0.00015267,2]
[418964629,1774675393568,-170.48485285,0.00015268,2]
[418964630,1774675393600,-474.26758858,0.00015366,2]
[418964631,1774675393686,-1983.41541142,0.00015366,2]
[418964632,1774675393717,-179.806,0.00015366,2]
[418964633,1774675393747,-215.9916,0.00015367,2]
[418964634,1774675393814,-1587.61781142,0.00015367,2]
[418964635,1774675393829,-179.806,0.00015367,2]
[418964636,1774675393844,-215.9916,0.00015367,2]
[418964637,1774675393863,-241.58397716,0.00015367,2]
[418964638,1774675396487,-162.47,0.00014587,2]
[418964639,1774675396519,-1922.50561142,0.00015367,2]
[418964640,1774675396571,-830.05877716,0.00015367,2]
[418964641,1774675396598,-5000.01,0.00015367,2]
[418964649,1774675745121,-388.16,0.00011788,2]
[418964650,1774675745144,-500.0,0.00014356,2]
[418964651,1774675745165,-500.0,0.00014356,2]
[418964652,1774675745187,-200.0,0.00014567,2]
[418964653,1774675745208,-2000.0,0.00014641,2]
[418964654,1774675745232,-300.0,0.00015265,2]
[418964655,1774675745255,-204.92803445,0.00015266,2]
[418964656,1774675745278,-500.0,0.00015266,2]
[418964657,1774675745301,-500.0,0.00015266,2]
[418964658,1774675745324,-213.13139706,0.00015266,2]
[418964659,1774675745347,-500.0,0.00015266,2]
[418964660,1774675745369,-215.35550734,0.00015266,2]
[418964661,1774675745391,-500.0,0.00015266,2]
[418964662,1774675745413,-500.0,0.00015266,2]
[418964663,1774675745439,-500.0,0.00015266,2]
[418964664,1774675745465,-500.0,0.00015266,2]
[418964665,1774675745489,-500.0,0.00015266,2]
[418964666,1774675745515,-500.0,0.00015266,2]
[418964667,1774675745540,-500.0,0.00015266,2]
[418964668,1774675745567,-169.02471956,0.00015266,2]
[418964669,1774675745595,-309.40034159,0.00015267,2]
[418964670,1774675746701,-250.0,0.00012967,2]
[418964671,1774675746725,-9750.0,0.00015267,2]
[418964672,1774675747071,-10000.0,0.00015267,2]
[418964673,1774675747440,-10000.0,0.00015267,2]
[418964674,1774675748367,-10000.0,0.00015267,2]
[418964675,1774675748508,-10000.0,0.00015267,2]
[418964676,1774675754857,-10000.0,0.00015267,2]
[418964677,1774675755280,-10000.0,0.00015267,2]
[418964678,1774675755674,-10000.0,0.00015267,2]
[418964679,1774675756070,-10000.0,0.00015267,2]
[418964680,1774675756496,-10000.0,0.00015267,2]
[418964681,1774675756909,-10000.0,0.00015267,2]
[418964682,1774675757297,-10000.0,0.00015267,2]
[418964683,1774675757648,-10000.0,0.00015267,2]
[418964684,1774675758006,-10000.0,0.00015267,2]
[418964685,1774675758324,-10000.0,0.00015267,2]
[418964686,1774675758919,-10000.0,0.00015267,2]
[418964687,1774675759066,-10000.0,0.00015267,2]
[418964688,1774675759458,-10000.0,0.00015267,2]
[418964689,1774675759840,-10000.0,0.00015267,2]
[418964690,1774675760229,-10000.0,0.00015267,2]
[418964691,1774675760633,-10000.0,0.00015267,2]
[418964692,1774675761069,-10000.0,0.00015267,2]
[418964693,1774675761426,-10000.0,0.00015267,2]
[418964694,1774675761834,-10000.0,0.00015267,2]
[418964695,1774675762241,-10000.0,0.00015267,2]
[418964696,1774675762620,-10000.0,0.00015267,2]
[418964697,1774675763086,-10000.0,0.00015267,2]
[418964698,1774675763758,-10000.0,0.00015267,2]
[418964699,1774675764569,-10000.0,0.00015267,2]
[418964700,1774675765500,-10000.0,0.00015267,2]
[418964701,1774675766093,-10000.0,0.00015267,2]
[418964712,1774675766862,-10000.0,0.00015267,2]
[418964713,1774675767677,-10000.0,0.00015267,2]
[418964714,1774675768453,-10000.0,0.00015267,2]
[418964715,1774675769687,-10000.0,0.00015267,2]
[418964716,1774675777422,-1399.93,0.00014723,2]
[418964717,1774675777447,-5815.07,0.00015267,2]
[418964720,1774675832225,-471.84604647,0.00014356,2]
[418964721,1774675832338,-40.63268158,0.00014356,2]
[418964722,1774675832348,-3018.00333668,0.00015022,2]
[418964723,1774675832359,-131.94566332,0.00015022,2]
[418964724,1774675832369,-118.05433668,0.00015167,2]
[418964725,1774675832381,-463.2901191,0.00015167,2]
[418964726,1774675832409,-669.32128312,0.00015167,2]
[418964727,1774675832420,-1248.86929294,0.00015167,2]
[418964728,1774675832432,-393.653476,0.00015167,2]
[418964729,1774675832460,-2646.6,0.00015167,2]
[418964730,1774675832516,-557.75172192,0.00015167,2]
[418964731,1774675832525,-300.0,0.00015266,2]
[418964732,1774675832535,-359.0,0.00015266,2]
[418964733,1774675832544,-2561.94980918,0.00015267,2]
[418964734,1774675832555,-818.42572312,0.00015267,2]
[418964735,1774675832575,-5100.0,0.00015267,2]
[418964759,1774675832827,-10000.01,0.00015267,2]
[418964760,1774675833001,-10000.01,0.00015267,2]
[418964761,1774675835765,-10000.01,0.00015267,2]
[418964762,1774675838481,-7246.95105033,0.00015267,2]
[418964763,1774675838545,-22000.0,0.00015267,2]
[418964764,1774675838556,-39843.72753097,0.00015267,2]
[418964765,1774675838568,-2563.71588452,0.00015267,2]
[418964766,1774675838580,-2778.74327069,0.00015267,2]
[418964767,1774675838677,-9131.82017428,0.00015267,2]
[418964768,1774675838688,-6789.312415,0.00015267,2]
[418964769,1774675838700,-624.23017825,0.00015267,2]
[418964775,1774675840724,-11861.86144857,0.00015267,2]
[418964776,1774675841010,-420.54463115,0.00015267,2]
[418964777,1774675841022,-600.52297931,0.00015267,2]
[418964778,1774675841072,-258.87161287,0.00015267,2]
[418964779,1774675841085,-867.24228138,0.00015267,2]
[418964780,1774675841097,-14823.84632351,0.00015267,2]
[418964781,1774675841133,-1028004.89909042,0.00015267,2]
[418964782,1774675842167,-87169.01844106,0.00015267,2]
[418964783,1774675842178,-505.0,0.00015267,2]
[418964792,1774675843579,-1180.59572565,0.00015267,2]
[418964793,1774675843591,-5100.93599827,0.00015267,2]
[418964794,1774675843750,-1036.94153083,0.00015267,2]
[418964795,1774675843763,-14992.75304372,0.00015267,2]
[418964796,1774675843774,-7595.19730418,0.00015267,2]
[418964797,1774675843858,-5710.90830266,0.00015267,2]
[418964798,1774675843870,-988.23690925,0.00015267,2]
[418964799,1774675843923,-6377.29274392,0.00015267,2]
[418964800,1774675843935,-12940.55648981,0.00015267,2]
[418964801,1774675844133,-18590.38483207,0.00015267,2]
[418964802,1774675844145,-1958.7483712,0.00015267,2]
[418964807,1774675846759,-215.9916,0.00015167,2]
[418964808,1774675846771,-59769.6042655,0.00015267,2]
[418964810,1774675846895,-26645.42656432,0.00015267,2]
[418964811,1774675846907,-663.11877974,0.00015267,2]
[418964813,1774675849677,-5000.01,0.00015267,2]
[418964814,1774675849878,-5000.01,0.00015267,2]
[418964815,1774675852628,-5000.01,0.00015267,2]
[418964816,1774675852676,-5000.01,0.00015267,2]
[418964817,1774675867477,3050.660081,7.945e-05,2]
[418964818,1774675923445,151.55,7.662e-05,2]
[418964819,1774675930959,161.0,7.945e-05,3]
[418964820,1774675986536,161.0,7.945e-05,3]
[418964821,1774676046691,161.0,7.945e-05,3]
[418964822,1774676105456,161.0,7.945e-05,3]
[418964823,1774676107586,160.0,7.945e-05,3]
[418964825,1774676170451,161.0,7.945e-05,3]
[418964826,1774676202459,-160.0,9.223e-05,3]
[418964827,1774676202480,-418.0,9.3e-05,2]
[418964828,1774676202503,-210.9718797,0.00010145,2]
[418964829,1774676202526,-1711.0281203,0.0001023,2]
[418964830,1774676220334,-1000.0,0.0001023,2]
[418964831,1774676226489,161.0,7.945e-05,3]
[418964832,1774676284809,161.0,7.945e-05,3]
[418964833,1774676314913,-160.0,0.000105,3]
[418964834,1774676314943,-196.43472492,0.00011253,2]
[418964835,1774676314973,-250.0,0.00011253,2]
[418964836,1774676315004,-160.0,0.00011778,3]
[418964837,1774676315034,-160.0,0.00013056,3]
[418964838,1774676315066,-170.48485286,0.00013896,2]
[418964839,1774676315259,-1200.0,0.00013995,2]
[418964840,1774676315432,-1086.24,0.00013996,2]
[418964841,1774676315464,-1400.0,0.00014172,2]
[418964842,1774676315560,-160.0,0.00014334,3]
[418964843,1774676315572,-246.17084444,0.00014356,2]
[418964844,1774676315588,-27.53,0.00014356,2]
[418964845,1774676317820,-226.29915556,0.00014356,2]
[418964846,1774676317851,-500.0,0.00014356,2]
[418964847,1774676317881,-1599.76168888,0.00014407,2]
[418964848,1774676317938,-347.88831112,0.00014407,2]
[418964849,1774676317971,-2164.01,0.00014408,2]
[418964850,1774676318015,-671.99,0.00014408,2]
[418964851,1774676320824,-1300.0,0.00014558,2]
[418964852,1774676320857,-436.54907807,0.00014834,2]
[418964853,1774676320889,-500.0,0.00015,2]
[418964854,1774676320922,-26.91184386,0.00015,2]
[418964855,1774676321003,-473.08815614,0.00015,2]
[418964856,1774676321033,-500.0,0.00015,2]
[418964857,1774676321062,-500.0,0.00015,2]
[418964858,1774676321093,-376.2,0.00015,2]
[418964859,1774676321121,-500.0,0.00015,2]
[418964860,1774676321230,-500.0,0.00015,2]
[418964861,1774676321244,-86.43,0.00015,2]
[418964862,1774676321254,-150.0,0.00015,2]
[418964863,1774676321263,-65.00368772,0.00015,2]
[418964869,1774676405493,160.0,7.945e-05,3]
[418964874,1774676634254,-160.0,0.00010756,3]
[418964875,1774676634283,-160.0,0.00013567,3]
[418964876,1774676634315,-170.48485285,0.00014321,2]
[418964877,1774676634345,-336.0,0.00014356,2]
[418964878,1774676634375,-500.0,0.00014356,2]
[418964879,1774676634409,-500.0,0.00014356,2]
[418964880,1774676634437,-161.0,0.000144,2]
[418964881,1774676634470,-811.0,0.000144,2]
[418964882,1774676634503,-198.73,0.00014421,2]
[418964883,1774676634534,-166.66,0.00014845,2]
[418964884,1774676634566,-300.0,0.00014998,2]
[418964885,1774676634595,-1200.0,0.00014998,2]
[418964886,1774676640160,-1200.0,0.00014999,2]
[418964887,1774676640191,-300.0,0.00014999,2]
[418964888,1774676640219,-1266.38,0.00014999,2]
[418964889,1774676640383,-1937.3002133,0.00014999,2]
[418964890,1774676646556,-300.0,0.00014998,2]
[418964891,1774676646585,-4517.4397867,0.00014999,2]
[418964892,1774676646640,-365.1304266,0.00014999,2]
[418964893,1774676652682,-500.0,0.00014973,2]
[418964894,1774676652710,-165.99982076,0.00014973,2]
[418964895,1774676652767,-8668.01035848,0.00014999,2]
[418964896,1774676660749,-245.41415789,0.00014973,2]
[418964897,1774676660778,-500.0,0.00014973,2]
[418964898,1774676660807,-501.23124429,0.00014973,2]
[418964899,1774676660871,-7506.71919564,0.00014999,2]
[418964900,1774676712000,161.0,0.00010756,2]
[418964901,1774676780378,851.17,0.00010102,2]
[418964902,1774676780894,2030.0,0.00010414,2]
[418964903,1774676781413,1300.0,0.0001058,2]
[418964904,1774676868051,-960.0,0.00010874,2]
[418964905,1774676868083,-1800.0,0.00011109,2]
[418964906,1774676868115,-1030.0,0.00011378,2]
[418964907,1774676868143,-1070.01,0.00011815,2]
[418964908,1774676868255,-118.99,0.00011815,2]
[418964909,1774676874003,-161.0,0.00011815,2]
[418964910,1774676874036,-1935.04,0.00011941,2]
[418964911,1774676874064,-833.84,0.00014196,2]
[418964912,1774676874112,-4140.25,0.00014196,2]
[418964913,1774677003561,336.0,0.00014356,2]
[418964914,1774677005598,161.0,0.00014356,2]
[418964915,1774677011770,-500.0,0.00014356,2]
[418964916,1774677011799,-500.0,0.00014356,2]
[418964917,1774677027040,151.11,7.081e-05,2]
[418964918,1774677027237,151.11,8.497e-05,2]
[418964919,1774677027527,151.11,9.913e-05,2]
[418964920,1774677027719,151.11,0.00011329,2]
[418964921,1774677027903,151.11,0.00012745,2]
[418964922,1774677028089,151.11,0.00014161,2]
[418964923,1774677031499,-3626.12666968,0.00014799,2]
[418964924,1774677031510,-716.51117773,0.00014799,2]
[418964925,1774677031526,-1430.66631438,0.00014799,2]
[418964926,1774677031685,-378.35139607,0.00014799,2]
[418964927,1774677031747,-54.7693189,0.00014799,2]
[418964928,1774677031756,-249.55296252,0.00014848,2]
[418964929,1774677031766,-3206.31926943,0.00014848,2]
[418964930,1774677031775,-500.51641949,0.00014873,2]
[418964931,1774677031787,-300.40559251,0.00014873,2]
[418964932,1774677031796,-160.29411643,0.00014873,2]
[418964933,1774677031805,-501.78976674,0.00014873,2]
[418964934,1774677031815,-27.63931022,0.00014873,2]
[418964935,1774677031826,-472.36068978,0.00014873,2]
[418964936,1774677031836,-504.49892762,0.00014873,2]
[418964937,1774677031845,-460.29939446,0.00014873,2]
[418964938,1774677031855,-503.89992989,0.00014873,2]
[418964939,1774677031864,-504.25937407,0.00014873,2]
[418964941,1774677031874,-73.46675322,0.00014873,2]
[418964949,1774677037661,-392.50072665,0.00014873,2]
[418964950,1774677037675,-35.12298087,0.00014873,2]
[418964951,1774677037687,-500.0,0.00014898,2]
[418964952,1774677037700,-300.0,0.00014898,2]
[418964953,1774677037711,-350.74885513,0.00014898,2]
[418964954,1774677037722,-296.55830217,0.00014898,2]
[418964955,1774677037733,-500.0,0.00014898,2]
[418964956,1774677037744,-399.19197794,0.00014898,2]
[418964957,1774677037755,-150.0,0.00014898,2]
[418964958,1774677037766,-1847.371689,0.00014899,2]
[418964959,1774677037780,-500.0,0.00014899,2]
[418964960,1774677037800,-938.21914446,0.00014899,2]
[418964961,1774677037813,-2872.41260233,0.00014899,2]
[418964962,1774677037844,-3595.2502192,0.00014899,2]
[418964963,1774677037964,-788.45865194,0.00014899,2]
[418964965,1774677039863,-354.615,0.00014899,2]
[418964966,1774677039877,-430.35,0.00014899,2]
[418964967,1774677040094,-1550.58262181,0.00014899,2]
[418964968,1774677040158,-1209.577,0.00014899,2]
[418964969,1774677040173,-875.50000001,0.00014899,2]
[418964970,1774677040187,-325.47403664,0.00014899,2]
[418964971,1774677040562,-369.885,0.00014899,2]
[418964994,1774677045930,-8143.66183461,0.00014899,2]
[418964995,1774677045939,-5110.7848,0.00014899,2]
[418964996,1774677045949,-17735.72866175,0.00014899,2]
[418964997,1774677045991,-973.00923496,0.00014899,2]
[418964998,1774677046054,-565.6000001,0.00014899,2]
[418965000,1774677046070,-506.5681281,0.00014899,2]
[418965155,1774677070140,500.0,0.00014356,2]
[418965156,1774677106568,-1927.907,0.00014601,2]
[418965157,1774677106758,-1144.196,0.00014601,2]
[418965158,1774677106788,-224.758,0.00014601,2]
[418965159,1774677106816,-169.45157305,0.00014873,2]